[Event "Early-Titled-Tuesday-Blitz-May-28-2024"]
[Site "Chess.com"]
[Date "2024.05.28"]
[Round "6"]
[White "balack95"]
[Black "remyrushbrooke"]
[Result "1-0"]
[WhiteElo "2503"]
[BlackElo "2277"]
[TimeControl "180+1"]
[EndTime "9:08:02 PDT"]
[Termination "balack95 won by checkmate"]

1. Nf3 {[%clk 0:03:00.9]} 1... g6 {[%clk 0:02:59.6]} 2. c4 {[%clk 0:03:01.8]}
2... Bg7 {[%clk 0:02:59.8]} 3. g3 {[%clk 0:03:02.6]} 3... e5 {[%clk 0:02:59.2]}
4. Bg2 {[%clk 0:03:03.5]} 4... e4 {[%clk 0:02:56.3]} 5. Ng1 {[%clk 0:03:01]}
5... f5 {[%clk 0:02:55.1]} 6. Nc3 {[%clk 0:03:01.1]} 6... Nf6 {[%clk 0:02:55.1]}
7. d4 {[%clk 0:02:59]} 7... d5 {[%clk 0:02:50.4]} 8. cxd5 {[%clk 0:02:52.9]}
8... Nxd5 {[%clk 0:02:50.5]} 9. Nh3 {[%clk 0:02:52.8]} 9... O-O {[%clk 0:02:49]}
10. O-O {[%clk 0:02:49.6]} 10... Nc6 {[%clk 0:02:44]} 11. Bg5 {[%clk 0:02:47.8]}
11... Nxc3 {[%clk 0:02:20.3]} 12. bxc3 {[%clk 0:02:45.7]} 12... Qd5 {[%clk
0:02:20.5]} 13. Qb3 {[%clk 0:02:32.2]} 13... Qxb3 {[%clk 0:02:20.4]} 14. axb3
{[%clk 0:02:31.8]} 14... Be6 {[%clk 0:02:20.9]} 15. Rfb1 {[%clk 0:02:04.6]}
15... h6 {[%clk 0:02:20.8]} 16. Bc1 {[%clk 0:01:39.7]} 16... g5 {[%clk
0:02:16.5]} 17. e3 {[%clk 0:01:40.2]} 17... b5 {[%clk 0:02:05.1]} 18. Ra6 {[%clk
0:01:38.2]} 18... Bd5 {[%clk 0:01:36.7]} 19. Bf1 {[%clk 0:01:11]} 19... Rfb8
{[%clk 0:01:30.5]} 20. Rba1 {[%clk 0:01:09.6]} 20... Rb7 {[%clk 0:00:59]} 21. c4
{[%clk 0:01:08.4]} 21... Nb4 {[%clk 0:00:57]} 22. cxd5 {[%clk 0:01:05.7]} 22...
Nxa6 {[%clk 0:00:56.4]} 23. Rxa6 {[%clk 0:01:06.6]} 23... Rd8 {[%clk 0:00:55.4]}
24. Ba3 {[%clk 0:00:35.5]} 24... Rxd5 {[%clk 0:00:55.2]} 25. Bc5 {[%clk
0:00:35.1]} 25... Rd8 {[%clk 0:00:26]} 26. b4 {[%clk 0:00:26.2]} 26... Kh7
{[%clk 0:00:15.8]} 27. f3 {[%clk 0:00:21.8]} 27... Re8 {[%clk 0:00:09.4]} 28.
Nf2 {[%clk 0:00:20.1]} 28... exf3 {[%clk 0:00:08.9]} 29. Bd3 {[%clk 0:00:20.2]}
29... Rxe3 {[%clk 0:00:09]} 30. Bxf5+ {[%clk 0:00:20.3]} 30... Kh8 {[%clk
0:00:08]} 31. Ng4 {[%clk 0:00:13.3]} 31... Rc3 {[%clk 0:00:03.2]} 32. Kf2 {[%clk
0:00:13]} 32... Rc4 {[%clk 0:00:02.1]} 33. Kxf3 {[%clk 0:00:12.5]} 33... Bxd4
{[%clk 0:00:02.2]} 34. Bxd4+ {[%clk 0:00:11.2]} 34... Rxd4 {[%clk 0:00:02]} 35.
Rxh6+ {[%clk 0:00:10.5]} 35... Kg7 {[%clk 0:00:02.6]} 36. Rg6+ {[%clk
0:00:09.9]} 36... Kf7 {[%clk 0:00:03.1]} 37. Ne5+ {[%clk 0:00:10]} 37... Ke7
{[%clk 0:00:02.9]} 38. Re6+ {[%clk 0:00:10.1]} 38... Kf8 {[%clk 0:00:02.9]} 39.
Nc6 {[%clk 0:00:08.3]} 39... Rc4 {[%clk 0:00:02.7]} 40. h3 {[%clk 0:00:07.6]}
40... Rc3+ {[%clk 0:00:02.9]} 41. Kg4 {[%clk 0:00:07.8]} 41... Rb6 {[%clk
0:00:03.4]} 42. Nd4 {[%clk 0:00:05.3]} 42... Rxe6 {[%clk 0:00:03.6]} 43. Nxe6+
{[%clk 0:00:06.2]} 43... Ke7 {[%clk 0:00:03.8]} 44. Kxg5 {[%clk 0:00:06.1]}
44... Rc4 {[%clk 0:00:04.3]} 45. g4 {[%clk 0:00:06.2]} 45... Rxb4 {[%clk
0:00:04.8]} 46. h4 {[%clk 0:00:06.7]} 46... Rc4 {[%clk 0:00:04.9]} 47. h5 {[%clk
0:00:07.1]} 47... Rc6 {[%clk 0:00:05.4]} 48. Nd4 {[%clk 0:00:06.8]} 48... Rc5
{[%clk 0:00:05.3]} 49. h6 {[%clk 0:00:06.8]} 49... Kf7 {[%clk 0:00:05.4]} 50. h7
{[%clk 0:00:06.7]} 50... Kg7 {[%clk 0:00:05.7]} 51. Ne6+ {[%clk 0:00:07.4]}
51... Kh8 {[%clk 0:00:04.3]} 52. Nxc5 {[%clk 0:00:08.3]} 52... b4 {[%clk
0:00:04.8]} 53. Kf6 {[%clk 0:00:08.2]} 53... a5 {[%clk 0:00:05.2]} 54. g5 {[%clk
0:00:08.7]} 54... b3 {[%clk 0:00:05.4]} 55. g6 {[%clk 0:00:09.1]} 55... b2
{[%clk 0:00:05.5]} 56. g7# {[%clk 0:00:10]} 1-0

[Event "Early-Titled-Tuesday-Blitz-May-28-2024"]
[Site "Chess.com"]
[Date "2024.05.28"]
[Round "6"]
[White "RespectfulDaveOnYouTube"]
[Black "simaopdias"]
[Result "1-0"]
[WhiteElo "2496"]
[BlackElo "2247"]
[TimeControl "180+1"]
[EndTime "9:08:03 PDT"]
[Termination "RespectfulDaveOnYouTube won by resignation"]

1. e4 {[%clk 0:03:00.9]} 1... c5 {[%clk 0:02:59.5]} 2. d4 {[%clk 0:02:58.5]}
2... cxd4 {[%clk 0:02:59]} 3. c3 {[%clk 0:02:57.2]} 3... d3 {[%clk 0:02:58.6]}
4. Bxd3 {[%clk 0:02:56.4]} 4... g6 {[%clk 0:02:59.5]} 5. h4 {[%clk 0:02:51.9]}
5... h5 {[%clk 0:02:59.3]} 6. Bg5 {[%clk 0:02:43.3]} 6... Bg7 {[%clk 0:02:59.1]}
7. Nf3 {[%clk 0:02:40.9]} 7... Nc6 {[%clk 0:02:58.7]} 8. Nbd2 {[%clk 0:02:40.2]}
8... d6 {[%clk 0:02:59]} 9. O-O {[%clk 0:02:38.1]} 9... Bg4 {[%clk 0:02:59.3]}
10. Qb3 {[%clk 0:02:37.8]} 10... Qb6 {[%clk 0:02:56.9]} 11. Qxb6 {[%clk
0:02:14.5]} 11... axb6 {[%clk 0:02:57.8]} 12. Nh2 {[%clk 0:02:10.5]} 12... Bd7
{[%clk 0:02:50.4]} 13. Nc4 {[%clk 0:02:05.4]} 13... b5 {[%clk 0:02:48.2]} 14.
Nb6 {[%clk 0:02:04.1]} 14... Ra5 {[%clk 0:02:44.4]} 15. Nf3 {[%clk 0:01:42.7]}
15... Nf6 {[%clk 0:02:41.2]} 16. Rfd1 {[%clk 0:00:49.9]} 16... Be6 {[%clk
0:02:39.4]} 17. b4 {[%clk 0:00:42.6]} 17... Ra6 {[%clk 0:02:31.9]} 18. Bxf6
{[%clk 0:00:42.5]} 18... Bxf6 {[%clk 0:02:31.7]} 19. Nd5 {[%clk 0:00:42.6]}
19... Bxd5 {[%clk 0:02:08.3]} 20. exd5 {[%clk 0:00:42.6]} 20... Na7 {[%clk
0:02:08.7]} 21. a4 {[%clk 0:00:34.4]} 21... Bxc3 {[%clk 0:02:06.6]} 22. Rac1
{[%clk 0:00:28.6]} 22... Bxb4 {[%clk 0:01:57.3]} 23. Bxb5+ {[%clk 0:00:11.1]}
23... Nxb5 {[%clk 0:01:57]} 24. Rc8+ {[%clk 0:00:11.7]} 24... Kd7 {[%clk
0:01:56.1]} 25. Rxh8 {[%clk 0:00:12.6]} 25... Nc3 {[%clk 0:01:55.9]} 26. Re1
{[%clk 0:00:04]} 26... Nxd5 {[%clk 0:01:54.6]} 27. Re4 {[%clk 0:00:02.5]} 27...
f5 {[%clk 0:01:47.6]} 28. Rd4 {[%clk 0:00:02]} 28... Ra5 {[%clk 0:01:37.2]} 29.
Rg8 {[%clk 0:00:02.2]} 29... e5 {[%clk 0:01:36.9]} 30. Rd1 {[%clk 0:00:01.5]}
30... Nf4 {[%clk 0:01:34.5]} 31. g3 {[%clk 0:00:01]} 31... Ne2+ {[%clk
0:01:32.9]} 32. Kf1 {[%clk 0:00:01.1]} 32... Nc3 {[%clk 0:01:32.3]} 33. Rd3
{[%clk 0:00:01]} 33... e4 {[%clk 0:01:31.1]} 34. Rd4 {[%clk 0:00:01.5]} 34...
exf3 {[%clk 0:01:31.1]} 35. Rxb4 {[%clk 0:00:01.9]} 35... Rd5 {[%clk 0:01:18.4]}
36. Kg1 {[%clk 0:00:02.3]} 36... Rd1+ {[%clk 0:01:14.3]} 37. Kh2 {[%clk
0:00:02.4]} 37... Rf1 {[%clk 0:01:12.3]} 38. Rg7+ {[%clk 0:00:02.7]} 38... Kc6
{[%clk 0:01:12.2]} 39. Rc4+ {[%clk 0:00:02.8]} 39... Kd5 {[%clk 0:01:10.7]} 40.
Rxc3 {[%clk 0:00:03.7]} 40... Rxf2+ {[%clk 0:01:11]} 41. Kg1 {[%clk 0:00:02.8]}
41... Rg2+ {[%clk 0:01:06.2]} 42. Kf1 {[%clk 0:00:03.2]} 42... Rxg3 {[%clk
0:00:57]} 43. Kf2 {[%clk 0:00:03]} 43... Rh3 {[%clk 0:00:54.1]} 44. Rxb7 {[%clk
0:00:03.1]} 44... Rxh4 {[%clk 0:00:52.2]} 45. Rb5+ {[%clk 0:00:02.9]} 45... Ke6
{[%clk 0:00:52.2]} 46. Re3+ {[%clk 0:00:01.9]} 46... Kf6 {[%clk 0:00:51.5]} 47.
a5 {[%clk 0:00:01.9]} 47... g5 {[%clk 0:00:48.4]} 48. Rxf3 {[%clk 0:00:01.6]}
48... Ra4 {[%clk 0:00:46.9]} 49. Rd3 {[%clk 0:00:02]} 49... g4 {[%clk
0:00:45.1]} 50. Rxd6+ {[%clk 0:00:02]} 50... Kg5 {[%clk 0:00:45.5]} 51. Rdd5
{[%clk 0:00:02.8]} 51... Rf4+ {[%clk 0:00:42.9]} 52. Kg2 {[%clk 0:00:03.4]}
52... h4 {[%clk 0:00:42.8]} 53. Rxf5+ {[%clk 0:00:03.2]} 53... Rxf5 {[%clk
0:00:42.9]} 54. Rxf5+ {[%clk 0:00:04.1]} 54... Kxf5 {[%clk 0:00:43.5]} 55. a6
{[%clk 0:00:05]} 55... Kf4 {[%clk 0:00:43]} 56. a7 {[%clk 0:00:05.2]} 56... h3+
{[%clk 0:00:42.9]} 57. Kg1 {[%clk 0:00:04.7]} 1-0

[Event "Early-Titled-Tuesday-Blitz-May-28-2024"]
[Site "Chess.com"]
[Date "2024.05.28"]
[Round "6"]
[White "ChrisTool2"]
[Black "Nf3c5"]
[Result "0-1"]
[WhiteElo "2378"]
[BlackElo "2563"]
[TimeControl "180+1"]
[EndTime "9:08:04 PDT"]
[Termination "Nf3c5 won by checkmate"]

1. d4 {[%clk 0:03:00.9]} 1... Nf6 {[%clk 0:02:45.6]} 2. c4 {[%clk 0:03:00.6]}
2... g6 {[%clk 0:02:46.1]} 3. f3 {[%clk 0:03:01]} 3... Bg7 {[%clk 0:02:45]} 4.
e4 {[%clk 0:03:01.2]} 4... d6 {[%clk 0:02:45.7]} 5. Nc3 {[%clk 0:03:01.6]} 5...
a6 {[%clk 0:02:46.3]} 6. Nge2 {[%clk 0:03:01.5]} 6... Nbd7 {[%clk 0:02:46.9]} 7.
Bg5 {[%clk 0:03:01.7]} 7... c5 {[%clk 0:02:47.1]} 8. d5 {[%clk 0:03:01.6]} 8...
b5 {[%clk 0:02:47.7]} 9. Ng3 {[%clk 0:02:59.3]} 9... Qa5 {[%clk 0:02:46.5]} 10.
Qd2 {[%clk 0:02:57.1]} 10... Nb6 {[%clk 0:02:44.1]} 11. cxb5 {[%clk 0:02:54.9]}
11... O-O {[%clk 0:02:41.3]} 12. Be2 {[%clk 0:02:52.3]} 12... axb5 {[%clk
0:02:38.9]} 13. Bxb5 {[%clk 0:02:53.2]} 13... Ba6 {[%clk 0:02:38.1]} 14. Bxa6
{[%clk 0:02:46]} 14... Qxa6 {[%clk 0:02:35.3]} 15. Qe2 {[%clk 0:02:44.2]} 15...
Rfb8 {[%clk 0:02:26.4]} 16. O-O {[%clk 0:02:23.9]} 16... h6 {[%clk 0:02:07.1]}
17. Bf4 {[%clk 0:02:19.7]} 17... Nfd7 {[%clk 0:01:58]} 18. h4 {[%clk 0:01:36.7]}
18... Na4 {[%clk 0:01:40.4]} 19. Nxa4 {[%clk 0:01:07]} 19... Qxe2 {[%clk
0:01:01.4]} 20. Nxe2 {[%clk 0:01:07.9]} 20... Rxa4 {[%clk 0:01:00.9]} 21. Nc3
{[%clk 0:01:01.5]} 21... Rc4 {[%clk 0:00:54.5]} 22. h5 {[%clk 0:00:57]} 22...
Rxb2 {[%clk 0:00:49.5]} 23. Nd1 {[%clk 0:00:55.6]} 23... Re2 {[%clk 0:00:42.1]}
24. Rc1 {[%clk 0:00:52.1]} 24... Ra4 {[%clk 0:00:29.2]} 25. hxg6 {[%clk
0:00:49.7]} 25... Raxa2 {[%clk 0:00:26.6]} 26. gxf7+ {[%clk 0:00:47]} 26... Kxf7
{[%clk 0:00:26.9]} 27. g4 {[%clk 0:00:33]} 27... Bd4+ {[%clk 0:00:19.2]} 28. Kh1
{[%clk 0:00:32.8]} 28... Be5 {[%clk 0:00:19.9]} 29. Nc3 {[%clk 0:00:17]} 29...
Bxf4 {[%clk 0:00:17.5]} 30. Nxa2 {[%clk 0:00:16.3]} 30... Rxa2 {[%clk
0:00:16.5]} 31. Ra1 {[%clk 0:00:15.8]} 31... Rh2+ {[%clk 0:00:16.5]} 32. Kg1
{[%clk 0:00:15.6]} 32... Ne5 {[%clk 0:00:16.8]} 33. Ra3 {[%clk 0:00:14]} 33...
c4 {[%clk 0:00:13.1]} 34. Rc3 {[%clk 0:00:14]} 34... h5 {[%clk 0:00:10.6]} 35.
gxh5 {[%clk 0:00:12.5]} 35... Rxh5 {[%clk 0:00:11.5]} 36. Rb1 {[%clk 0:00:12.3]}
36... Rg5+ {[%clk 0:00:08.8]} 37. Kf1 {[%clk 0:00:12.1]} 37... Bd2 {[%clk
0:00:09.5]} 38. Ra3 {[%clk 0:00:09.7]} 38... c3 {[%clk 0:00:09.7]} 39. Ke2
{[%clk 0:00:08.3]} 39... c2 {[%clk 0:00:09.3]} 40. Rba1 {[%clk 0:00:06.4]} 40...
c1=Q {[%clk 0:00:09.4]} 41. Rxc1 {[%clk 0:00:06.6]} 41... Bxc1 {[%clk
0:00:10.3]} 42. Ra1 {[%clk 0:00:06.7]} 42... Bf4 {[%clk 0:00:10.2]} 43. Ra8
{[%clk 0:00:07.4]} 43... Rg2+ {[%clk 0:00:10.3]} 44. Kf1 {[%clk 0:00:07.3]}
44... Rc2 {[%clk 0:00:09.1]} 45. Rh8 {[%clk 0:00:07.9]} 45... Nd3 {[%clk
0:00:08.3]} 46. Rh7+ {[%clk 0:00:05.3]} 46... Kf6 {[%clk 0:00:08.8]} 47. Rh4
{[%clk 0:00:05.9]} 47... Ke5 {[%clk 0:00:08.8]} 48. Rh7 {[%clk 0:00:04.6]} 48...
Kd4 {[%clk 0:00:04.1]} 49. Rxe7 {[%clk 0:00:04.6]} 49... Ke3 {[%clk 0:00:04.8]}
50. e5 {[%clk 0:00:04.1]} 50... Bxe5 {[%clk 0:00:03.2]} 51. f4 {[%clk
0:00:02.9]} 51... Kf3 {[%clk 0:00:02.6]} 52. Rxe5 {[%clk 0:00:03.5]} 52... Rc1+
{[%clk 0:00:02.5]} 53. Re1 {[%clk 0:00:02.6]} 53... Rxe1# {[%clk 0:00:03.4]} 0-1

[Event "Early-Titled-Tuesday-Blitz-May-28-2024"]
[Site "Chess.com"]
[Date "2024.05.28"]
[Round "6"]
[White "EvgenyBurmakin"]
[Black "FMStan15"]
[Result "1-0"]
[WhiteElo "2346"]
[BlackElo "2140"]
[TimeControl "180+1"]
[EndTime "9:08:04 PDT"]
[Termination "EvgenyBurmakin won by resignation"]

1. Nf3 {[%clk 0:03:00.9]} 1... Nf6 {[%clk 0:02:48.9]} 2. b3 {[%clk 0:03:00.9]}
2... g6 {[%clk 0:02:43]} 3. Bb2 {[%clk 0:03:01.2]} 3... Bg7 {[%clk 0:02:43.7]}
4. e3 {[%clk 0:03:01.6]} 4... d6 {[%clk 0:02:44]} 5. Be2 {[%clk 0:03:01.2]} 5...
e5 {[%clk 0:02:44.3]} 6. d3 {[%clk 0:02:58.3]} 6... O-O {[%clk 0:02:44.3]} 7.
Nbd2 {[%clk 0:02:58.3]} 7... Nh5 {[%clk 0:02:43.8]} 8. c4 {[%clk 0:02:51.5]}
8... e4 {[%clk 0:02:41.2]} 9. Bxg7 {[%clk 0:02:42.8]} 9... exf3 {[%clk
0:02:41.2]} 10. Bxf8 {[%clk 0:02:21.6]} 10... fxe2 {[%clk 0:02:40.2]} 11. Qxe2
{[%clk 0:02:17.8]} 11... Qxf8 {[%clk 0:02:39.7]} 12. O-O {[%clk 0:02:04]} 12...
Nc6 {[%clk 0:02:39.5]} 13. Rab1 {[%clk 0:01:45.4]} 13... a5 {[%clk 0:02:38.7]}
14. f4 {[%clk 0:01:36.6]} 14... Nf6 {[%clk 0:02:29.4]} 15. Nf3 {[%clk
0:01:34.2]} 15... Bg4 {[%clk 0:02:29.3]} 16. h3 {[%clk 0:01:33.6]} 16... Bxf3
{[%clk 0:02:29.4]} 17. Qxf3 {[%clk 0:01:34.5]} 17... Re8 {[%clk 0:02:25.2]} 18.
a3 {[%clk 0:01:24.5]} 18... Qe7 {[%clk 0:02:24.1]} 19. Rfe1 {[%clk 0:01:23.4]}
19... Nd7 {[%clk 0:02:23.9]} 20. b4 {[%clk 0:01:22]} 20... axb4 {[%clk
0:02:23.5]} 21. axb4 {[%clk 0:01:22.9]} 21... f5 {[%clk 0:02:19]} 22. b5 {[%clk
0:01:17.8]} 22... Nd8 {[%clk 0:02:16]} 23. Ra1 {[%clk 0:01:05.3]} 23... Nc5
{[%clk 0:02:13.9]} 24. Ra8 {[%clk 0:01:01.7]} 24... Nxd3 {[%clk 0:02:08.1]} 25.
Qd5+ {[%clk 0:00:59.4]} 25... Qe6 {[%clk 0:02:05.4]} 26. Qxd3 {[%clk 0:00:43.9]}
26... Nf7 {[%clk 0:02:04.1]} 27. Rxe8+ {[%clk 0:00:43]} 27... Qxe8 {[%clk
0:02:03.9]} 28. e4 {[%clk 0:00:41.1]} 28... c6 {[%clk 0:01:36.6]} 29. bxc6
{[%clk 0:00:34.1]} 29... bxc6 {[%clk 0:01:36.4]} 30. Re2 {[%clk 0:00:33.9]}
30... Qd7 {[%clk 0:01:27.4]} 31. e5 {[%clk 0:00:27]} 31... Qa7+ {[%clk
0:01:26.1]} 32. Kh2 {[%clk 0:00:24.9]} 32... dxe5 {[%clk 0:01:23.2]} 33. fxe5
{[%clk 0:00:25.5]} 33... Qc7 {[%clk 0:01:23.2]} 34. Qg3 {[%clk 0:00:20.2]} 34...
Qe7 {[%clk 0:01:12.1]} 35. e6 {[%clk 0:00:19.2]} 35... Nd8 {[%clk 0:01:11.9]}
36. Qe5 {[%clk 0:00:18.7]} 36... c5 {[%clk 0:01:05.6]} 37. Qd5 {[%clk
0:00:17.8]} 37... Kf8 {[%clk 0:00:54.9]} 38. Qd7 {[%clk 0:00:16.5]} 38... Nb7
{[%clk 0:00:42]} 39. Re5 {[%clk 0:00:15.1]} 39... Nd6 {[%clk 0:00:22.2]} 40. Rd5
{[%clk 0:00:13.2]} 40... Nxc4 {[%clk 0:00:14.8]} 41. Qc8+ {[%clk 0:00:13.1]}
41... Kg7 {[%clk 0:00:11.2]} 42. Rd7 {[%clk 0:00:13.5]} 42... Kf6 {[%clk
0:00:11]} 43. Rxe7 {[%clk 0:00:13.1]} 43... Kxe7 {[%clk 0:00:10.9]} 44. Qd7+
{[%clk 0:00:13.7]} 44... Kf6 {[%clk 0:00:11.3]} 45. Qf7+ {[%clk 0:00:13.5]}
45... Ke5 {[%clk 0:00:11.6]} 46. e7 {[%clk 0:00:14.4]} 46... Nd6 {[%clk
0:00:10.9]} 47. e8=N {[%clk 0:00:15.3]} 47... Nxe8 {[%clk 0:00:09.7]} 48. Qxe8+
{[%clk 0:00:15.2]} 48... Kd4 {[%clk 0:00:10]} 49. Qd7+ {[%clk 0:00:15.3]} 49...
Kc3 {[%clk 0:00:09.6]} 50. Qxh7 {[%clk 0:00:15.5]} 50... c4 {[%clk 0:00:09.3]}
51. Qxg6 {[%clk 0:00:16.1]} 51... Kd2 {[%clk 0:00:09.3]} 52. Qxf5 {[%clk
0:00:16.6]} 52... c3 {[%clk 0:00:09.8]} 53. h4 {[%clk 0:00:17.2]} 53... c2
{[%clk 0:00:10.1]} 54. Qxc2+ {[%clk 0:00:17.5]} 54... Kxc2 {[%clk 0:00:09.9]}
55. h5 {[%clk 0:00:18.4]} 55... Kd3 {[%clk 0:00:10.3]} 56. h6 {[%clk 0:00:19.3]}
56... Ke4 {[%clk 0:00:10.8]} 57. h7 {[%clk 0:00:20.2]} 57... Kf5 {[%clk
0:00:11.3]} 58. h8=Q {[%clk 0:00:21]} 58... Kg6 {[%clk 0:00:11.7]} 59. Qe5
{[%clk 0:00:21.2]} 59... Kh7 {[%clk 0:00:11.3]} 60. Qg5 {[%clk 0:00:20.8]} 60...
Kh8 {[%clk 0:00:11.2]} 61. Kg3 {[%clk 0:00:21.2]} 61... Kh7 {[%clk 0:00:12.1]}
62. Kf4 {[%clk 0:00:22.1]} 62... Kh8 {[%clk 0:00:12.9]} 63. Kf5 {[%clk 0:00:23]}
63... Kh7 {[%clk 0:00:13.7]} 64. Kf6 {[%clk 0:00:23.9]} 1-0

[Event "Early-Titled-Tuesday-Blitz-May-28-2024"]
[Site "Chess.com"]
[Date "2024.05.28"]
[Round "6"]
[White "Fh2411"]
[Black "tylityli"]
[Result "1-0"]
[WhiteElo "2545"]
[BlackElo "2374"]
[TimeControl "180+1"]
[EndTime "9:08:06 PDT"]
[Termination "Fh2411 won by resignation"]

1. d4 {[%clk 0:03:00.9]} 1... Nf6 {[%clk 0:02:58.9]} 2. Nf3 {[%clk 0:03:00.8]}
2... d5 {[%clk 0:02:58.8]} 3. Bf4 {[%clk 0:02:57.4]} 3... c5 {[%clk 0:02:58.6]}
4. e3 {[%clk 0:02:57.5]} 4... Nc6 {[%clk 0:02:58.5]} 5. Nbd2 {[%clk 0:02:57.5]}
5... Qb6 {[%clk 0:02:56.9]} 6. dxc5 {[%clk 0:02:56.8]} 6... Qxb2 {[%clk
0:02:54.4]} 7. Rb1 {[%clk 0:02:56.9]} 7... Qa3 {[%clk 0:02:50.1]} 8. Bb5 {[%clk
0:02:57]} 8... Bd7 {[%clk 0:02:45.3]} 9. O-O {[%clk 0:02:42.4]} 9... Qxc5 {[%clk
0:02:40.4]} 10. c4 {[%clk 0:02:27.7]} 10... e6 {[%clk 0:02:35.4]} 11. Nb3 {[%clk
0:02:18.9]} 11... Qb6 {[%clk 0:02:27.7]} 12. Nbd4 {[%clk 0:02:16]} 12... Qd8
{[%clk 0:02:23.7]} 13. Nxc6 {[%clk 0:01:39.2]} 13... bxc6 {[%clk 0:02:22.3]} 14.
Ba6 {[%clk 0:01:39.4]} 14... Bc8 {[%clk 0:02:18.2]} 15. Qa4 {[%clk 0:01:38.9]}
15... Bxa6 {[%clk 0:01:44.9]} 16. Qxc6+ {[%clk 0:01:37.7]} 16... Nd7 {[%clk
0:01:44.8]} 17. Qxa6 {[%clk 0:01:37.5]} 17... Be7 {[%clk 0:01:36.2]} 18. cxd5
{[%clk 0:01:31.3]} 18... exd5 {[%clk 0:01:35.7]} 19. Rfd1 {[%clk 0:01:16.7]}
19... O-O {[%clk 0:01:26.9]} 20. Rxd5 {[%clk 0:01:16]} 20... Nc5 {[%clk
0:01:25.8]} 21. Qc4 {[%clk 0:01:13.4]} 21... Qa5 {[%clk 0:01:13.5]} 22. h3
{[%clk 0:01:08.5]} 22... Rac8 {[%clk 0:01:03.6]} 23. Nd4 {[%clk 0:01:02.4]}
23... Qa3 {[%clk 0:00:39.5]} 24. Nb5 {[%clk 0:00:57.4]} 24... Qa6 {[%clk
0:00:33.6]} 25. Qe2 {[%clk 0:00:31.8]} 25... Ne6 {[%clk 0:00:26.6]} 26. Bg3
{[%clk 0:00:27.3]} 26... Rfd8 {[%clk 0:00:19.6]} 27. Rxd8+ {[%clk 0:00:24]}
27... Rxd8 {[%clk 0:00:19.1]} 28. Qc2 {[%clk 0:00:24.7]} 28... h6 {[%clk
0:00:17]} 29. a4 {[%clk 0:00:14.7]} 29... Bf6 {[%clk 0:00:15.5]} 30. Kh2 {[%clk
0:00:06.5]} 30... g6 {[%clk 0:00:14.9]} 31. Qb3 {[%clk 0:00:06.1]} 31... Bg7
{[%clk 0:00:13.1]} 32. Qb4 {[%clk 0:00:06.2]} 32... Rd7 {[%clk 0:00:09]} 33. Rc1
{[%clk 0:00:04.9]} 33... Qb7 {[%clk 0:00:07.1]} 34. Qc4 {[%clk 0:00:05.1]} 34...
a6 {[%clk 0:00:06.4]} 35. Qc8+ {[%clk 0:00:03.9]} 35... Qxc8 {[%clk 0:00:05.8]}
36. Rxc8+ {[%clk 0:00:04.8]} 36... Rd8 {[%clk 0:00:04.6]} 37. Rxd8+ {[%clk
0:00:04.6]} 37... Nxd8 {[%clk 0:00:05.5]} 38. Nc7 {[%clk 0:00:05.2]} 38... a5
{[%clk 0:00:05.4]} 39. Bd6 {[%clk 0:00:05.5]} 39... Bc3 {[%clk 0:00:03.9]} 40.
Nd5 {[%clk 0:00:05.3]} 40... Be1 {[%clk 0:00:03]} 41. Kg1 {[%clk 0:00:04.6]}
41... Nc6 {[%clk 0:00:02]} 42. Kf1 {[%clk 0:00:05]} 42... Bb4 {[%clk 0:00:01.1]}
43. Bxb4 {[%clk 0:00:04.4]} 43... Nxb4 {[%clk 0:00:01.2]} 44. Nxb4 {[%clk
0:00:03.9]} 44... axb4 {[%clk 0:00:01.8]} 45. Ke2 {[%clk 0:00:04.6]} 45... Kf8
{[%clk 0:00:02.2]} 46. Kd3 {[%clk 0:00:05.2]} 46... Ke7 {[%clk 0:00:03.1]} 47.
Kc4 {[%clk 0:00:05.8]} 47... Kd6 {[%clk 0:00:04]} 48. Kxb4 {[%clk 0:00:06.5]}
48... Kc6 {[%clk 0:00:04.9]} 49. Kc4 {[%clk 0:00:07.2]} 49... Kb6 {[%clk
0:00:05.8]} 50. Kd5 {[%clk 0:00:07.6]} 50... Ka5 {[%clk 0:00:06.3]} 51. Ke5
{[%clk 0:00:08.3]} 51... Kxa4 {[%clk 0:00:07.2]} 52. Kf6 {[%clk 0:00:09]} 52...
Kb3 {[%clk 0:00:08.1]} 53. Kxf7 {[%clk 0:00:09.7]} 53... Kc3 {[%clk 0:00:09]}
54. e4 {[%clk 0:00:09.4]} 54... Kd3 {[%clk 0:00:09.9]} 55. e5 {[%clk 0:00:10.1]}
55... Ke2 {[%clk 0:00:10.8]} 56. Kxg6 {[%clk 0:00:10.3]} 1-0